bitfinex-derivatives/quotes_BTCF0:USTF0_20250602
["timestamp","ask_amount","ask_price","bid_price","bid_amount"]
[1748902481114,0.21452667,105260.0,105250.0,1.76727841]
[1748902481502,0.21452667,105260.0,105250.0,1.93727841]
[1748902481700,0.21452667,105260.0,105250.0,1.89242729]
[1748902481911,0.21452667,105260.0,105250.0,1.93727733]
[1748902482611,0.19432667,105260.0,105250.0,1.87854151]
[1748902482811,0.19452667,105260.0,105250.0,1.87854151]
[1748902483009,0.19452667,105260.0,105250.0,1.83368148]
[1748902483310,0.19452667,105260.0,105250.0,1.87852239]
[1748902484912,0.19452667,105260.0,105250.0,1.83642032]
[1748902485213,0.19432667,105260.0,105250.0,1.87851753]
[1748902485413,0.19452667,105260.0,105250.0,1.87851753]
[1748902485817,0.19452667,105260.0,105250.0,1.87850326]
[1748902489606,0.19452667,105260.0,105250.0,1.87848537]
[1748902489807,0.19452667,105260.0,105250.0,1.51768537]
[1748902490014,0.19452667,105260.0,105250.0,1.87848537]
[1748902491707,0.19452667,105260.0,105250.0,1.93728939]
[1748902493519,0.19452667,105260.0,105250.0,1.93725295]
[1748902497215,0.19452667,105260.0,105250.0,1.93724897]
[1748902497817,0.19452667,105260.0,105250.0,1.87844495]
[1748902499823,0.19452667,105260.0,105250.0,1.47395528]
[1748902500019,0.25802667,105260.0,105250.0,1.57624389]
[1748902500223,0.29102667,105260.0,105250.0,1.57624389]
[1748902500417,0.78335111,105260.0,105250.0,0.31013338]
[1748902500618,1.23835912,105260.0,105250.0,0.14566448]
[1748902500817,1.75835912,105260.0,105250.0,0.16090106]
[1748902501021,1.75835912,105260.0,105250.0,0.04479743]
[1748902501415,1.50835912,105260.0,105250.0,0.04479743]
[1748902501624,0.1899364,105250.0,105240.0,0.5274605]
[1748902501819,0.6034364,105250.0,105240.0,0.45546303]
[1748902502019,0.7934364,105250.0,105240.0,0.45546303]
[1748902502218,0.7934364,105250.0,105240.0,0.5002668]
[1748902502530,0.8264364,105250.0,105240.0,0.5002668]
[1748902502728,0.8264364,105250.0,105240.0,0.6902212]
[1748902502926,0.8264364,105250.0,105240.0,0.6922212]
[1748902503325,0.8264364,105250.0,105240.0,0.50226526]
[1748902504028,0.8264364,105250.0,105240.0,0.04694526]
[1748902504228,0.8264364,105250.0,105240.0,0.50222526]
[1748902504620,0.8264364,105250.0,105240.0,0.69217966]
[1748902504818,0.2756364,105250.0,105240.0,0.86739377]
[1748902505023,0.2756364,105250.0,105240.0,0.94360553]
[1748902505425,0.2758364,105250.0,105240.0,0.94360553]
[1748902505630,0.2758364,105250.0,105240.0,0.44421377]
[1748902505826,0.2758364,105250.0,105240.0,0.89953377]
[1748902506231,0.2758364,105250.0,105240.0,0.97153124]
[1748902506526,0.2758364,105250.0,105240.0,1.00173124]
[1748902506737,0.2758364,105250.0,105240.0,1.46409576]
[1748902506738,0.2431364,105250.0,105240.0,1.46409576]
[1748902506921,0.2431364,105250.0,105240.0,1.58605492]
[1748902507124,0.2431364,105250.0,105240.0,1.58537364]
[1748902507336,0.2429364,105250.0,105240.0,1.77537364]
[1748902507832,0.053,105250.0,105240.0,1.90689808]
[1748902508019,0.2431365,105250.0,105240.0,1.86284207]
[1748902508225,0.2231365,105250.0,105240.0,1.95103569]
[1748902508535,0.1901365,105250.0,105240.0,1.95103569]
[1748902508943,0.0002,105250.0,105240.0,1.95103569]
[1748902509249,0.28927737,105260.0,105250.0,0.1899365]
[1748902509549,0.28927737,105260.0,105250.0,1.48589353]
[1748902510047,0.24179717,105260.0,105250.0,1.56194395]
[1748902510546,0.19431717,105260.0,105250.0,1.56194395]
[1748902510750,0.19431717,105260.0,105250.0,1.56192016]
[1748902510936,0.19431717,105260.0,105250.0,1.59402016]
[1748902511850,0.19431717,105260.0,105250.0,2.04930016]
[1748902513747,0.25961717,105260.0,105250.0,2.04930016]
[1748902514438,0.25961717,105260.0,105250.0,1.64370494]
[1748902514638,0.25961717,105260.0,105250.0,1.68844289]
[1748902514944,0.25961717,105260.0,105250.0,1.73247871]
[1748902515340,0.25961717,105260.0,105250.0,1.64440125]
[1748902515535,0.22701717,105260.0,105250.0,2.00520125]
[1748902515944,0.22701717,105260.0,105250.0,1.63022451]
[1748902516343,0.22701717,105260.0,105250.0,1.99102451]
[1748902516843,0.19431717,105260.0,105250.0,1.99102451]
[1748902518256,0.19431717,105260.0,105250.0,1.94628656]
[1748902518552,0.19431717,105260.0,105250.0,1.99102261]
[1748902520955,0.19431717,105260.0,105250.0,2.03302607]
[1748902521744,0.19431717,105260.0,105250.0,1.96115885]
[1748902522054,0.19431717,105260.0,105250.0,1.96115796]
[1748902522444,0.19431717,105260.0,105250.0,2.04923542]
[1748902522746,0.19431717,105260.0,105250.0,1.96115796]
[1748902523343,0.00439257,105260.0,105250.0,1.96115796]
[1748902523546,0.19431097,105260.0,105250.0,2.04923542]
[1748902523750,0.00459257,105260.0,105250.0,2.04923542]
[1748902524147,0.3343472,105270.0,105260.0,0.1899184]
[1748902524348,0.3543472,105270.0,105260.0,1.07744502]
[1748902525651,0.3543472,105270.0,105260.0,1.00559321]
[1748902525853,0.3543472,105270.0,105260.0,1.00558405]
[1748902527547,0.022,105270.0,105260.0,0.87558405]
[1748902527758,0.002,105270.0,105260.0,1.46765927]
[1748902527948,0.1919004,105270.0,105260.0,1.42363465]
[1748902528146,0.1921004,105270.0,105260.0,1.29211021]
[1748902529162,0.0022,105270.0,105260.0,1.29211021]
[1748902529370,0.1921004,105270.0,105260.0,1.29211021]
[1748902529664,0.1921004,105270.0,105260.0,1.29208783]
[1748902531457,0.0022,105270.0,105260.0,1.29208783]
[1748902531660,0.002,105270.0,105260.0,1.51168973]
[1748902531865,0.1921004,105270.0,105260.0,1.51168973]
[1748902532156,0.0022,105270.0,105260.0,1.51168973]
[1748902532365,0.0022,105270.0,105260.0,1.48183194]
[1748902533253,0.0022,105270.0,105260.0,1.43985726]
[1748902533453,0.23750833,105280.0,105270.0,0.1899003]
[1748902533664,0.072098,105290.0,105280.0,0.1898823]
[1748902533961,0.009598,105290.0,105280.0,1.16098836]
[1748902534158,0.009598,105290.0,105280.0,1.25120667]
[1748902534357,0.009798,105290.0,105280.0,1.29591121]
[1748902534560,0.2968462,105300.0,105290.0,0.1898642]
[1748902534763,0.107,105300.0,105290.0,1.22309387]
[1748902535069,0.2968462,105300.0,105290.0,1.87929581]
[1748902535365,0.1072,105300.0,105290.0,1.96804816]
[1748902535565,0.2968462,105300.0,105290.0,1.96804816]
[1748902535862,0.2968462,105300.0,105290.0,2.00988515]
[1748902535863,0.2970462,105300.0,105290.0,2.00988515]
[1748902536253,0.2970462,105300.0,105290.0,1.92180769]
[1748902536551,0.2970462,105300.0,105290.0,1.35500769]
[1748902536764,0.3297462,105300.0,105290.0,1.96575396]
[1748902536953,0.3297462,105300.0,105290.0,2.01032403]
[1748902537262,0.3602462,105300.0,105290.0,1.44356403]
[1748902537463,0.3602462,105300.0,105290.0,1.39885949]
[1748902537659,0.3602462,105300.0,105290.0,1.96561949]
[1748902538463,0.3602462,105300.0,105290.0,2.03730451]
[1748902538758,0.3602462,105300.0,105290.0,1.90574007]
[1748902538961,0.3602462,105300.0,105290.0,2.03726451]
[1748902539357,0.3602462,105300.0,105290.0,1.9785462]
[1748902539965,0.3602462,105300.0,105290.0,1.93657666]
[1748902540160,0.3602462,105300.0,105290.0,1.99529497]
[1748902540367,0.3925462,105300.0,105290.0,1.86489164]
[1748902540563,0.3925462,105300.0,105290.0,1.7763353]
[1748902540763,0.3925462,105300.0,105290.0,1.86480312]
[1748902540962,0.3925462,105300.0,105290.0,1.27835868]
[1748902541156,0.7533462,105300.0,105290.0,0.61246782]
[1748902541358,0.9433462,105300.0,105290.0,0.13456545]
[1748902541667,0.189866,105290.0,105280.0,0.13106359]
[1748902541855,0.580666,105290.0,105280.0,0.97053622]
[1748902542162,0.612466,105290.0,105280.0,0.40385622]
[1748902542365,0.612466,105290.0,105280.0,0.97053622]
[1748902542662,0.612466,105290.0,105280.0,1.16042092]
[1748902542870,0.612466,105290.0,105280.0,1.29194536]
[1748902543460,0.612466,105290.0,105280.0,1.10206066]
[1748902543672,0.612466,105290.0,105280.0,1.05746803]
[1748902543972,0.622466,105290.0,105280.0,0.96194839]
[1748902544154,0.622466,105290.0,105280.0,0.96194809]
[1748902544352,0.622466,105290.0,105280.0,0.96194626]
[1748902544552,0.622466,105290.0,105280.0,0.64053742]
[1748902544757,0.612466,105290.0,105280.0,0.83042182]
[1748902545166,0.612466,105290.0,105280.0,0.83042517]
[1748902545367,0.612466,105290.0,105280.0,1.04042517]
[1748902545568,0.612466,105290.0,105280.0,0.98206521]
[1748902545770,0.612466,105290.0,105280.0,1.17194961]
[1748902546165,0.612466,105290.0,105280.0,0.35106359]
[1748902546464,0.75399044,105290.0,105280.0,0.01014303]
[1748902546665,0.75399044,105290.0,105280.0,0.46498303]
[1748902547064,0.622466,105290.0,105280.0,0.46498303]
[1748902547269,0.622466,105290.0,105280.0,0.46494303]
[1748902547464,0.612466,105290.0,105280.0,0.01014303]
[1748902547669,0.77399044,105290.0,105280.0,0.01014303]
[1748902547968,0.1899205,105260.0,105250.0,0.06068578]
[1748902548168,1.35324494,105260.0,105250.0,0.43533337]
[1748902548371,2.09875295,105260.0,105250.0,0.10533337]
[1748902548564,2.09875295,105260.0,105250.0,0.04673785]
[1748902548766,2.09875295,105260.0,105250.0,0.00209026]
[1748902548767,2.10805302,105260.0,105250.0,0.00209026]
[1748902548970,2.10805302,105260.0,105250.0,6e-08]
[1748902549276,0.1899385,105250.0,105240.0,0.00014303]
[1748902549461,1.20436294,105250.0,105240.0,0.00014303]
[1748902549658,1.29937894,105250.0,105240.0,0.00014303]
[1748902550662,1.06937894,105250.0,105240.0,0.00014303]
[1748902550966,1.10157894,105250.0,105240.0,0.00014303]
[1748902551567,1.10157894,105250.0,105240.0,0.00214303]
[1748902553267,0.74077894,105250.0,105240.0,0.00214303]
[1748902553467,1.46237894,105250.0,105240.0,0.00214303]
[1748902554570,1.47237894,105250.0,105240.0,0.00214303]
[1748902555267,0.2542385,105250.0,105240.0,0.97963818]
[1748902555467,0.2542385,105250.0,105240.0,1.44583374]
[1748902555672,0.2544385,105250.0,105240.0,1.66583374]
[1748902555974,0.2544385,105250.0,105240.0,1.69893374]
[1748902556777,0.2544385,105250.0,105240.0,1.72973374]
[1748902558277,0.2544385,105250.0,105240.0,1.4082527]
[1748902558579,0.2544385,105250.0,105240.0,1.36893374]
[1748902558776,0.2544385,105250.0,105240.0,1.14817714]
[1748902559078,0.3444385,105250.0,105240.0,1.33813374]
[1748902559266,0.3444385,105250.0,105240.0,1.16291963]
[1748902559468,0.2544385,105250.0,105240.0,0.70807963]
[1748902559774,0.2544385,105250.0,105240.0,1.16291963]
[1748902560077,0.2544385,105250.0,105240.0,1.29444407]
[1748902560580,0.2544385,105250.0,105240.0,1.19703291]
[1748902560976,0.2544385,105250.0,105240.0,1.18276407]
[1748902561175,0.1901385,105250.0,105240.0,1.75087818]
[1748902561375,0.1901385,105250.0,105240.0,1.76514601]
[1748902561576,0.1899385,105250.0,105240.0,1.75087818]
[1748902561776,0.1901385,105250.0,105240.0,1.61935374]
[1748902562877,0.1901385,105250.0,105240.0,1.44366468]
[1748902563077,0.5820385,105250.0,105240.0,0.57006747]
[1748902563270,0.2212385,105250.0,105240.0,1.21482407]
[1748902563468,0.2534385,105250.0,105240.0,1.21482407]
[1748902563679,0.2534385,105250.0,105240.0,0.83486747]
[1748902563883,0.2534385,105250.0,105240.0,1.02482407]
[1748902564079,0.6142385,105250.0,105240.0,1.02482407]
[1748902564578,0.6242385,105250.0,105240.0,0.70334303]
[1748902565283,0.6242385,105250.0,105240.0,0.24854303]
[1748902565482,0.6242385,105250.0,105240.0,0.70334303]
[1748902565983,0.62848804,105250.0,105240.0,0.70334303]
[1748902566185,0.62848804,105250.0,105240.0,0.89329963]
[1748902566673,0.62848804,105250.0,105240.0,0.70334303]
[1748902567078,0.62848804,105250.0,105240.0,0.24854303]
[1748902567278,0.76001248,105250.0,105240.0,0.09854303]
[1748902567477,0.76001248,105250.0,105240.0,0.55330303]
[1748902567985,0.62848804,105250.0,105240.0,0.55330303]
[1748902568879,0.23658804,105250.0,105240.0,1.09999818]
[1748902569086,0.00424954,105250.0,105240.0,1.72079818]
[1748902569282,0.00444954,105250.0,105240.0,1.76514402]
[1748902569482,0.2374034,105260.0,105250.0,0.3323654]
[1748902569790,0.2374034,105260.0,105250.0,1.39272984]
[1748902569977,0.2376034,105260.0,105250.0,1.43641951]
[1748902570181,0.0002,105260.0,105250.0,1.43641951]
[1748902570383,0.1901205,105260.0,105250.0,1.86881376]
[1748902570582,0.1899205,105260.0,105250.0,1.34118634]
[1748902570884,0.1901205,105260.0,105250.0,1.97179079]
[1748902571292,0.1901205,105260.0,105250.0,2.02306986]
[1748902571588,0.1911205,105260.0,105250.0,2.02306986]
[1748902572590,0.1901205,105260.0,105250.0,2.05796986]
[1748902573187,0.1901205,105260.0,105250.0,2.01360985]
[1748902573491,0.1901205,105260.0,105250.0,2.05802222]
[1748902574391,0.1901205,105260.0,105250.0,2.1459155]
[1748902576385,0.1901205,105260.0,105250.0,1.96647412]
[1748902576591,0.1901205,105260.0,105250.0,1.6911955]
[1748902576889,0.1901205,105260.0,105250.0,2.14586756]
[1748902579290,0.0002,105260.0,105250.0,2.14586756]
[1748902579698,0.33448643,105270.0,105260.0,0.1899205]
[1748902579898,0.33448643,105270.0,105260.0,1.18263559]
[1748902580691,0.33448643,105270.0,105260.0,1.21482652]
[1748902581098,0.33548643,105270.0,105260.0,1.21482652]
[1748902581493,0.19305493,105270.0,105260.0,1.27342204]
[1748902581700,0.19325493,105270.0,105260.0,1.27342204]
[1748902583294,0.00334303,105270.0,105260.0,1.27342204]
[1748902583495,0.19324553,105270.0,105260.0,1.21126213]
[1748902583700,0.19304553,105270.0,105260.0,1.29915541]
[1748902583885,0.19324553,105270.0,105260.0,1.29915541]
[1748902584497,0.19324553,105270.0,105260.0,1.29915324]
[1748902584991,0.19324553,105270.0,105260.0,1.28592005]
[1748902585193,0.19324553,105270.0,105260.0,1.33035325]
[1748902585394,0.00334303,105270.0,105260.0,1.33035325]
[1748902585594,0.19324553,105270.0,105260.0,1.33035325]
[1748902586000,0.19304553,105270.0,105260.0,1.33035325]
[1748902586801,0.19324553,105270.0,105260.0,1.33035325]
[1748902587600,0.19324553,105270.0,105260.0,1.89631325]
[1748902588508,0.19324553,105270.0,105260.0,1.85188005]
[1748902588806,0.19324553,105270.0,105260.0,1.89631829]
[1748902591706,0.19324553,105270.0,105260.0,1.89623829]
[1748902592005,0.19324553,105270.0,105260.0,1.00975426]
[1748902592202,0.64974553,105270.0,105260.0,1.25852393]
[1748902592407,0.64974553,105270.0,105260.0,1.33027069]
[1748902592802,0.64974553,105270.0,105260.0,1.27167517]
[1748902593107,0.28894553,105270.0,105260.0,1.63247517]
[1748902593303,0.28894553,105270.0,105260.0,1.75059582]
[1748902595313,0.25999507,105270.0,105260.0,1.75059582]
[1748902595708,0.25999507,105270.0,105260.0,1.70690615]
[1748902595913,0.00759257,105270.0,105260.0,1.75059582]
[1748902596113,0.00739257,105270.0,105260.0,1.75059582]
[1748902596312,0.00739257,105270.0,105260.0,1.96975016]
[1748902596313,0.00759257,105270.0,105260.0,1.96975016]
[1748902596609,0.00759257,105270.0,105260.0,1.77989358]
[1748902596807,0.00759257,105270.0,105260.0,1.91115464]
[1748902597316,0.00759257,105270.0,105260.0,1.77989358]
[1748902598019,0.19749507,105270.0,105260.0,1.77989358]
[1748902598209,0.00759257,105270.0,105260.0,1.6920003]
[1748902599411,0.19749497,105270.0,105260.0,1.6920003]
[1748902599611,0.19749497,105270.0,105260.0,1.56073924]
[1748902599810,0.19749497,105270.0,105260.0,1.69208577]
[1748902600119,0.00759257,105270.0,105260.0,1.69208577]
[1748902600921,0.19749497,105270.0,105260.0,1.69208577]
[1748902601311,0.00759257,105270.0,105260.0,1.69208577]
[1748902602316,0.39461044,105280.0,105270.0,0.1899024]
[1748902602317,9.054e-05,105280.0,105270.0,0.1899024]
[1748902602517,9.054e-05,105280.0,105270.0,1.36508123]
[1748902602719,9.054e-05,105280.0,105270.0,1.42353977]
[1748902602913,0.00029054,105280.0,105270.0,1.42353977]
[1748902603228,9.054e-05,105280.0,105270.0,1.42353977]
[1748902603521,0.00029054,105280.0,105270.0,1.46803441]
[1748902603721,0.00129054,105280.0,105270.0,1.42349987]
[1748902603923,0.4859859,105300.0,105290.0,0.1898664]
[1748902604111,0.4959859,105300.0,105290.0,1.71763177]
[1748902604310,0.4959859,105300.0,105290.0,1.8093919]
[1748902604516,0.4959859,105300.0,105290.0,1.8419919]
[1748902606716,0.4959859,105300.0,105290.0,1.71073084]
[1748902607023,0.4959859,105300.0,105290.0,1.8419919]
[1748902607525,0.4959859,105300.0,105290.0,1.84193872]
[1748902607916,0.4959859,105300.0,105290.0,1.88589375]
[1748902609629,0.4959859,105300.0,105290.0,1.81409375]
[1748902611226,0.4959859,105300.0,105290.0,1.81407275]
[1748902612024,0.4959859,105300.0,105290.0,1.88587275]
[1748902615037,0.4959859,105300.0,105290.0,1.88585475]
[1748902616431,0.4959859,105300.0,105290.0,1.82719462]
[1748902617322,0.4959859,105300.0,105290.0,1.75539462]
[1748902617831,0.4485228,105300.0,105290.0,1.75539462]
[1748902618832,0.4485228,105300.0,105290.0,1.76962916]
[1748902619027,0.4485228,105300.0,105290.0,1.81404664]
[1748902620330,0.1781,105300.0,105290.0,1.81404664]
[1748902620534,0.3579483,105300.0,105290.0,1.81404664]
[1748902620730,0.1683,105300.0,105290.0,1.81404664]
[1748902620935,0.3279483,105300.0,105290.0,1.81404664]
[1748902621335,0.1381,105300.0,105290.0,1.8140441]
[1748902621632,0.3279483,105300.0,105290.0,1.88573377]
[1748902622538,0.3579483,105300.0,105290.0,1.43149377]
[1748902622729,0.3579483,105300.0,105290.0,1.88545377]
[1748902623326,0.3579483,105300.0,105290.0,0.60088424]
[1748902623522,0.7187483,105300.0,105290.0,1.24471064]
[1748902623727,0.7187483,105300.0,105290.0,1.31640304]
[1748902623929,0.7187483,105300.0,105290.0,1.4476641]
[1748902624128,0.7187483,105300.0,105290.0,1.35640397]
[1748902624429,0.7487483,105300.0,105290.0,1.0224748]
[1748902624626,0.7487483,105300.0,105290.0,0.99471157]
[1748902624831,0.3879483,105300.0,105290.0,1.72916124]
[1748902625026,0.3879483,105300.0,105290.0,1.80665048]
[1748902625234,0.3577483,105300.0,105290.0,1.76268407]
[1748902625431,0.3579483,105300.0,105290.0,1.77692926]
[1748902625630,0.3577483,105300.0,105290.0,1.77692926]
[1748902625834,0.3579483,105300.0,105290.0,1.77692926]
[1748902626234,0.3579483,105300.0,105290.0,1.82090167]
[1748902626545,0.3579483,105300.0,105290.0,1.85220167]
[1748902627039,0.3579483,105300.0,105290.0,1.85216167]
[1748902627340,0.3579483,105300.0,105290.0,1.808472]
[1748902628247,0.3579483,105300.0,105290.0,1.76449959]
[1748902628739,0.3579483,105300.0,105290.0,1.76452641]
[1748902629843,0.3579483,105300.0,105290.0,1.80821608]
[1748902631137,0.3579483,105300.0,105290.0,1.80817608]
[1748902632337,0.3579483,105300.0,105290.0,1.89616628]
[1748902634745,0.1072,105300.0,105290.0,1.96876721]
[1748902635045,0.1072,105300.0,105290.0,1.74951595]
[1748902635250,0.107,105300.0,105290.0,1.74951595]
[1748902635548,0.1072,105300.0,105290.0,1.74951595]
[1748902635746,0.2970483,105300.0,105290.0,1.74951595]
[1748902635949,0.2970483,105300.0,105290.0,1.83754652]
[1748902636449,0.2970483,105300.0,105290.0,1.83757003]
[1748902638544,0.2970483,105300.0,105290.0,2.19837003]
[1748902639255,0.2970483,105300.0,105290.0,2.06710897]
[1748902639485,0.2970483,105300.0,105290.0,1.63325003]
[1748902639676,0.2970483,105300.0,105290.0,1.39579697]
[1748902639957,0.3702483,105300.0,105290.0,1.34530897]
[1748902640144,0.3702483,105300.0,105290.0,1.47657003]
[1748902640447,0.4033483,105300.0,105290.0,1.45944865]
[1748902640638,0.4033483,105300.0,105290.0,1.50394591]
[1748902641154,0.4033483,105300.0,105290.0,1.37268485]
[1748902641353,0.4033483,105300.0,105290.0,1.50394591]
[1748902641852,0.4033483,105300.0,105290.0,1.53454591]
[1748902642244,0.4033483,105300.0,105290.0,1.49085624]
[1748902642439,0.3720483,105300.0,105290.0,1.53454591]
[1748902642645,0.3620483,105300.0,105290.0,1.89534591]
[1748902643251,0.3620483,105300.0,105290.0,1.96710566]
[1748902644754,0.3620483,105300.0,105290.0,1.8358446]
[1748902644955,0.3620483,105300.0,105290.0,1.96710566]
[1748902645955,0.3620483,105300.0,105290.0,1.40222566]
[1748902646158,0.3620483,105300.0,105290.0,1.96686566]
[1748902648051,0.3289483,105300.0,105290.0,1.96686566]
[1748902648657,0.2970483,105300.0,105290.0,1.96686566]
[1748902649060,0.2968483,105300.0,105290.0,1.8356046]
[1748902649350,0.2968483,105300.0,105290.0,1.96682566]
[1748902649552,0.2970483,105300.0,105290.0,1.96682566]
[1748902649754,0.3070483,105300.0,105290.0,1.2947645]
[1748902649953,0.3384483,105300.0,105290.0,0.70660853]
[1748902650164,0.46970936,105300.0,105290.0,0.66476878]
[1748902650359,0.46970936,105300.0,105290.0,0.8106069]
[1748902650567,1.07370936,105300.0,105290.0,0.18031527]
[1748902650750,1.41868136,105300.0,105290.0,0.16031527]
[1748902650960,1.70868136,105300.0,105290.0,0.61387527]
[1748902651153,1.70868136,105300.0,105290.0,0.56987298]
[1748902651456,1.83994242,105300.0,105290.0,0.0450725]
[1748902651662,0.1898664,105290.0,105280.0,0.52551875]
[1748902651859,1.23502746,105290.0,105280.0,0.57045467]
[1748902652163,1.23502746,105290.0,105280.0,0.57041467]
[1748902652554,1.26672746,105290.0,105280.0,0.57041467]
[1748902652949,1.26672746,105290.0,105280.0,0.49859895]
[1748902653150,1.26672746,105290.0,105280.0,0.57041467]
[1748902653567,1.1354664,105290.0,105280.0,0.57041467]
[1748902654358,0.9254664,105290.0,105280.0,0.49859895]
[1748902654766,0.9254664,105290.0,105280.0,0.49855419]
[1748902655068,0.9254664,105290.0,105280.0,0.57036991]
[1748902656260,0.9254664,105290.0,105280.0,0.49855419]
[1748902656460,0.9254664,105290.0,105280.0,0.57036991]
[1748902657064,0.9254664,105290.0,105280.0,0.53055419]
[1748902657660,0.9254664,105290.0,105280.0,0.14884991]
[1748902657963,0.9254664,105290.0,105280.0,0.60236991]
[1748902658558,0.9254664,105290.0,105280.0,0.60234183]
[1748902659368,0.9254664,105290.0,105280.0,0.53052611]
[1748902660558,0.9254664,105290.0,105280.0,0.59172611]
[1748902662461,0.9254664,105290.0,105280.0,0.66354183]
[1748902663764,0.9254664,105290.0,105280.0,0.63276183]
[1748902663964,1.05672746,105290.0,105280.0,0.60226183]
[1748902664469,1.05672746,105290.0,105280.0,0.68833051]
[1748902664669,1.05672746,105290.0,105280.0,0.53124611]
[1748902665168,1.05672746,105290.0,105280.0,0.04500611]
[1748902665466,1.15170746,105290.0,105280.0,0.00014303]
[1748902666970,1.0204464,105290.0,105280.0,0.00014303]
[1748902667163,1.15170746,105290.0,105280.0,0.00014303]
[1748902668167,1.05672746,105290.0,105280.0,0.00014303]
[1748902668368,0.3548664,105290.0,105280.0,0.35248849]
[1748902668675,0.3229664,105290.0,105280.0,0.42752197]
[1748902668871,0.2917664,105290.0,105280.0,0.47121164]
[1748902669070,0.2917664,105290.0,105280.0,0.47120629]
[1748902669365,0.2917664,105290.0,105280.0,0.54289928]
[1748902669555,0.2917664,105290.0,105280.0,0.41163822]
[1748902669754,0.2917664,105290.0,105280.0,0.60163822]
[1748902669957,0.2917664,105290.0,105280.0,0.60164636]
[1748902670164,0.2600664,105290.0,105280.0,0.60164636]
[1748902673659,0.2600664,105290.0,105280.0,0.60166751]
[1748902674659,0.2598664,105290.0,105280.0,0.73292857]
[1748902674866,0.2600664,105290.0,105280.0,0.73292857]
[1748902675383,0.0702,105290.0,105280.0,0.84376857]
[1748902675671,0.3917912,105300.0,105290.0,0.1898663]
[1748902675876,0.4317912,105300.0,105290.0,1.59130329]
[1748902676175,0.4319912,105300.0,105290.0,1.59129965]
[1748902676371,0.4319912,105300.0,105290.0,1.6499806]
[1748902677367,0.4319912,105300.0,105290.0,1.69391645]
[1748902677672,0.4319912,105300.0,105290.0,1.64997698]
[1748902678162,0.4317912,105300.0,105290.0,1.64997698]
[1748902678362,0.3845252,105300.0,105290.0,1.64997698]
[1748902678558,0.1072,105300.0,105290.0,1.5782714]
[1748902678774,0.107,105300.0,105290.0,1.62236306]
[1748902679075,0.1917943,105330.0,105320.0,0.1898123]
[1748902679376,0.2017943,105330.0,105320.0,1.69840701]
[1748902679568,0.2017943,105330.0,105320.0,1.43983365]
[1748902679771,0.68385536,105330.0,105320.0,0.42735451]
[1748902679967,0.71705536,105330.0,105320.0,0.56055451]
[1748902680268,1.01705536,105330.0,105320.0,0.56055451]
[1748902680471,1.01705536,105330.0,105320.0,0.5157]
[1748902681559,1.04995536,105330.0,105320.0,0.5157]
[1748902682176,0.80995536,105330.0,105320.0,0.5157]
[1748902682870,0.1917942,105330.0,105320.0,0.74920197]
[1748902683072,0.2519942,105330.0,105320.0,1.52285547]
[1748902683369,0.1919942,105330.0,105320.0,1.54056774]
[1748902683671,0.1919942,105330.0,105320.0,1.58440055]
[1748902683871,0.1919942,105330.0,105320.0,1.54056774]
[1748902684469,0.0022,105330.0,105320.0,1.54056774]
[1748902684675,0.1917943,105330.0,105320.0,1.54056774]
[1748902684875,0.1919943,105330.0,105320.0,1.54056774]
[1748902685670,0.1919943,105330.0,105320.0,0.95610668]
[1748902685966,0.1919943,105330.0,105320.0,1.52926952]
[1748902686572,0.1919943,105330.0,105320.0,1.66053058]
[1748902686973,0.1919943,105330.0,105320.0,1.66036519]
[1748902688078,0.1919943,105330.0,105320.0,1.66028519]
[1748902688276,0.1919943,105330.0,105320.0,1.69118519]
[1748902689282,0.1919943,105330.0,105320.0,1.55992413]
[1748902689466,0.1919943,105330.0,105320.0,1.69118519]
[1748902690679,0.1919943,105330.0,105320.0,1.64670302]
[1748902690879,0.1919943,105330.0,105320.0,1.69115168]
[1748902691076,0.1919943,105330.0,105320.0,1.64670302]
[1748902692282,0.1919943,105330.0,105320.0,1.69099888]
[1748902694676,0.1919943,105330.0,105320.0,1.64670302]
[1748902694882,0.1919943,105330.0,105320.0,1.69098607]
[1748902695082,0.1917943,105330.0,105320.0,1.69098607]
[1748902695474,0.1919943,105330.0,105320.0,1.55972501]
[1748902695670,0.1919943,105330.0,105320.0,1.69098607]
[1748902700379,0.1919943,105330.0,105320.0,1.69105333]
[1748902702388,0.1919943,105330.0,105320.0,1.69107619]
[1748902702589,0.1919943,105330.0,105320.0,1.7348557]
[1748902704382,0.1919943,105330.0,105320.0,1.80619756]
[1748902704583,0.0022,105330.0,105320.0,1.93745862]
[1748902704891,0.6310862,105360.0,105350.0,0.1897582]
[1748902705074,0.6710862,105360.0,105350.0,0.93746893]
[1748902705385,0.012,105360.0,105350.0,1.05820316]
[1748902705583,0.012,105360.0,105350.0,1.70925555]
[1748902705584,0.1917402,105360.0,105350.0,1.70925555]
[1748902705890,0.1919402,105360.0,105350.0,1.70870178]
[1748902706082,0.1919402,105360.0,105350.0,1.767144]
[1748902706478,0.1919402,105360.0,105350.0,1.84416661]
[1748902706684,0.0022,105360.0,105350.0,1.84416661]
[1748902706879,0.0022,105360.0,105350.0,1.77264304]
[1748902707198,0.002,105360.0,105350.0,1.77264304]
[1748902707399,0.1919402,105360.0,105350.0,1.77264304]
[1748902709691,0.1919402,105360.0,105350.0,1.728795]
[1748902709886,0.1919402,105360.0,105350.0,1.77259272]
[1748902710886,0.6167654,105390.0,105380.0,0.1897052]
[1748902710887,0.3628,105390.0,105380.0,0.1897052]
[1748902711083,0.1916872,105390.0,105380.0,1.62944448]
[1748902711289,0.1916872,105390.0,105380.0,1.73512054]
[1748902711290,0.0022,105390.0,105380.0,1.73512054]
[1748902711487,0.03085739,105390.0,105380.0,1.80978267]
[1748902711787,0.03085739,105390.0,105380.0,1.85355994]
[1748902711788,0.22054459,105390.0,105380.0,1.85355994]
[1748902711988,0.22054459,105390.0,105380.0,1.68242669]
[1748902712297,0.58134459,105390.0,105380.0,0.89330513]
[1748902712498,0.61214459,105390.0,105380.0,0.84952786]
[1748902713285,0.25134459,105390.0,105380.0,1.17049402]
[1748902713486,0.61214459,105390.0,105380.0,0.98078892]
[1748902713791,0.3608,105410.0,105400.0,0.1896691]
[1748902714089,0.002,105420.0,105400.0,0.94466106]
[1748902714299,0.002,105420.0,105410.0,1.02952289]
[1748902714492,0.2516005,105440.0,105420.0,0.0948096]
[1748902714683,0.082,105440.0,105430.0,1.20876583]
[1748902714886,0.0822,105440.0,105430.0,1.27876583]
[1748902715395,0.1146,105440.0,105430.0,0.82616583]
[1748902715589,0.1146,105440.0,105430.0,1.27868583]
[1748902715590,0.3039971,105440.0,105430.0,1.27868583]
[1748902715784,0.3041971,105440.0,105430.0,1.27868583]
[1748902716286,0.0946,105440.0,105430.0,1.17872477]
[1748902716489,0.0946,105440.0,105430.0,1.31935012]
[1748902716689,0.0944,105440.0,105430.0,1.31935012]
[1748902716894,0.2841971,105440.0,105430.0,1.31935012]
[1748902717102,0.0946,105440.0,105430.0,1.31935012]
[1748902717496,0.2841971,105440.0,105430.0,1.31935012]
[1748902717890,0.0946,105440.0,105430.0,1.31935012]
[1748902718096,0.2841971,105440.0,105430.0,1.31935012]
[1748902719101,0.0946,105440.0,105430.0,1.49635012]